fUST/lending_fUST_20250915
["ID","MTS","AMOUNT","RATE_DAILY","PERIOD"]
[385625614,1757931049752,-151.0,0.00027597,7]
[385625615,1757931049762,-155.0,0.00027614,2]
[385625616,1757931049771,-178.2267772,0.00027633,15]
[385625617,1757931049780,-500.0,0.00027639,2]
[385625618,1757931049791,-720.0,0.00027664,20]
[385625619,1757931049800,-151.0,0.00027669,7]
[385625620,1757931049810,-151.57,0.00027669,15]
[385625621,1757931049819,-492.16,0.00027671,3]
[385625622,1757931049829,-480.0,0.00027671,3]
[385625623,1757931049839,-480.0,0.00027671,3]
[385625624,1757931049848,-7126.0,0.00027671,3]
[385625625,1757931049858,-480.0,0.00027671,3]
[385625626,1757931049867,-480.0,0.00027671,3]
[385625627,1757931049878,-1254.33,0.00027671,3]
[385625628,1757931049888,-480.0,0.00027671,3]
[385625629,1757931049897,-480.0,0.00027671,3]
[385625630,1757931049907,-1701.88,0.00027671,3]
[385625631,1757931049916,-1513.13,0.00027697,15]
[385625632,1757931049925,-2500.0,0.00027729,5]
[385625633,1757931049935,-160.0,0.00027733,4]
[385625634,1757931049944,-9945.04334053,0.00027734,2]
[385625635,1757931049954,-151.57,0.00027769,15]
[385625636,1757931049963,-208.0,0.0002777,30]
[385625637,1757931049973,-1513.13,0.00027797,15]
[385625638,1757931049982,-6627.30829625,0.000278,15]
[385625639,1757931049992,-2313.33,0.00027844,4]
[385625640,1757931050001,-383.50875531,0.00027864,2]
[385625641,1757931050011,-151.57,0.00027869,15]
[385625642,1757931050020,-1513.13,0.00027897,15]
[385625643,1757931050030,-1310.5,0.000279,7]
[385625644,1757931050039,-891.82,0.000279,7]
[385625645,1757931050049,-500.0,0.00027913,2]
[385625646,1757931050058,-492.16,0.00027945,3]
[385625647,1757931050068,-480.0,0.00027945,3]
[385625648,1757931050077,-480.0,0.00027945,3]
[385625649,1757931050086,-7126.0,0.00027945,3]
[385625650,1757931050095,-480.0,0.00027945,3]
[385625651,1757931050106,-480.0,0.00027945,3]
[385625652,1757931050116,-1254.33,0.00027945,3]
[385625653,1757931050126,-480.0,0.00027945,3]
[385625654,1757931050136,-613.76342556,0.00027945,3]
[385625655,1757931050147,-1701.88,0.00027945,3]
[385625656,1757931050156,-151.57,0.00027969,15]
[385625657,1757931050166,-157.54490115,0.00027973,5]
[385625658,1757931050175,-150.0,0.00027973,5]
[385625659,1757931050184,-150.0,0.00027973,2]
[385625660,1757931050194,-150.0,0.00027973,5]
[385625661,1757931050204,-300.0,0.00027973,5]
[385625662,1757931050214,-1513.13,0.00027997,15]
[385625663,1757931050224,-168.0,0.00027999,2]
[385625664,1757931050234,-295.4474759,0.00028,2]
[385625665,1757931050244,-1430.41523046,0.00028,2]
[385625666,1757931050254,-10288.72808671,0.00028,5]
[385625667,1757931050265,-3178.78461163,0.00028,120]
[385625668,1757931050275,-218094.667,0.00028,3]
[385625669,1757931050285,-248.917552,0.00028,7]
[385625670,1757931050295,-151.0,0.00028,7]
[385625671,1757931050304,-1042.61,0.00028,2]
[385625672,1757931050314,-168.0,0.00028008,2]
[385625673,1757931050323,-796.255629,0.00028033,2]
[385625674,1757931050332,-9945.04334053,0.00028034,2]
[385625675,1757931050341,-2000.0,0.00028037,7]
[385625676,1757931050351,-660.0,0.0002804,2]
[385625677,1757931050361,-151.57,0.00028069,15]
[385625678,1757931050370,-151.0,0.00028095,6]
[385625679,1757931050380,-1000.0,0.00028095,2]
[385625680,1757931050389,-1513.13,0.00028097,15]
[385625681,1757931050399,-27026.83,0.000281,7]
[385625682,1757931050409,-1730.71,0.000281,7]
[385625683,1757931050418,-1010.61830943,0.00028116,5]
[385625684,1757931050428,-389.41044593,0.00028116,5]
[385625685,1757931050437,-1000.0,0.00028116,5]
[385625686,1757931050447,-1000.0,0.00028116,5]
[385625687,1757931050457,-2000.0,0.00028116,5]
[385625688,1757931050466,-2000.0,0.00028116,5]
[385625689,1757931050476,-2000.0,0.00028116,5]
[385625690,1757931050486,-1000.0,0.00028116,5]
[385625691,1757931050495,-2000.0,0.00028116,5]
[385625692,1757931050505,-1000.0,0.0002812,2]
[385625693,1757931050515,-1042.61,0.0002814,2]
[385625694,1757931050525,-151.57,0.00028169,15]
[385625695,1757931050534,-208.0,0.0002818,30]
[385625696,1757931050543,-500.0,0.00028187,2]
[385625697,1757931050553,-500.0,0.00028189,2]
[385625698,1757931050562,-1513.13,0.00028197,15]
[385625699,1757931050572,-158.113753,0.00028197,3]
[385625700,1757931050582,-1000.0,0.00028212,2]
[385625701,1757931050591,-492.16,0.00028219,3]
[385625702,1757931050601,-480.0,0.00028219,3]
[385625703,1757931050611,-480.0,0.00028219,3]
[385625704,1757931050620,-7126.0,0.00028219,3]
[385625705,1757931050629,-480.0,0.00028219,3]
[385625706,1757931050639,-480.0,0.00028219,3]
[385625707,1757931050649,-1254.33,0.00028219,3]
[385625708,1757931050659,-480.0,0.00028219,3]
[385625709,1757931050668,-1701.88,0.00028219,3]
[385625710,1757931050679,-1000.0,0.00028224,2]
[385625711,1757931050689,-800.0,0.00028226,2]
[385625712,1757931050699,-1000.0,0.00028269,2]
[385625713,1757931050709,-151.57,0.00028269,15]
[385625714,1757931050719,-500.0,0.0002827,2]
[385625715,1757931050730,-1000.0,0.00028276,2]
[385625716,1757931050739,-517.14396974,0.00028277,5]
[385625717,1757931050751,-800.0,0.0002828,2]
[385625718,1757931050760,-1513.13,0.00028297,15]
[385625719,1757931050770,-151.0,0.000283,120]
[385625720,1757931050780,-500.0,0.00028331,2]
[385625721,1757931050791,-9945.04334053,0.00028335,2]
[385625722,1757931050800,-5000.0,0.00028341,30]
[385625723,1757931050810,-151.57,0.00028369,15]
[385625724,1757931050819,-500.0,0.00028374,2]
[385625725,1757931050829,-1000.0,0.00028382,2]
[385625726,1757931050838,-1513.13,0.00028397,15]
[385625727,1757931050848,-200.0,0.000284,120]
[385625728,1757931050859,-200.0,0.000284,120]
[385625729,1757931050868,-1073.5,0.000284,2]
[385625730,1757931050878,-200.0,0.000284,120]
[385625731,1757931050887,-160.7035671,0.0002843,120]
[385625732,1757931050897,-150000.0,0.0002844,2]
[385625733,1757931050907,-1000.0,0.00028457,2]
[385625734,1757931050916,-500.0,0.00028461,2]
[385625735,1757931050926,-151.57,0.00028469,15]
[385625736,1757931050936,-492.16,0.00028493,3]
[385625737,1757931050945,-422.02308252,0.00028493,3]
[385625738,1757931050955,-480.0,0.00028493,3]
[385625739,1757931050965,-7126.0,0.00028493,3]
[385625740,1757931050975,-266.62,0.00028493,3]
[385625741,1757931050984,-480.0,0.00028493,3]
[385625742,1757931050994,-1254.33,0.00028493,3]
[385625743,1757931051003,-480.0,0.00028493,3]
[385625744,1757931051013,-1701.88,0.00028493,3]
[385625745,1757931051023,-1513.13,0.00028497,15]
[385625746,1757931051032,-1593.12946993,0.000285,7]
[385625747,1757931051042,-300.0,0.00028521,5]
[385625748,1757931051051,-250.0,0.00028521,5]
[385625749,1757931051062,-191.75742074,0.00028521,5]
[385625750,1757931051072,-800.0,0.00028533,2]
[385625751,1757931051081,-500.0,0.00028551,2]
[385625752,1757931051091,-151.57,0.00028569,15]
[385625753,1757931051100,-760.0,0.00028588,2]
[385625754,1757931051110,-208.0,0.0002859,30]
[385625755,1757931051119,-1513.13,0.00028597,15]
[385625756,1757931051129,-383.50875531,0.00028622,2]
[385625757,1757931051139,-151.0,0.00028629,6]
[385625758,1757931051148,-9945.04334053,0.00028636,2]
[385625759,1757931051158,-908.44908238,0.00028643,10]
[385625760,1757931051168,-1348.29160089,0.00028664,5]
[385625761,1757931051178,-1679.2507149,0.00028664,5]
[385625762,1757931051188,-2500.0,0.00028664,5]
[385625763,1757931051198,-2500.0,0.00028664,5]
[385625764,1757931051209,-500.0,0.00028665,2]
[385625765,1757931051218,-151.57,0.00028669,15]
[385625766,1757931051228,-500.0,0.00028696,2]
[385625767,1757931051238,-1513.13,0.00028697,15]
[385625768,1757931051247,-800.0,0.00028719,2]
[385625769,1757931051257,-200.0,0.00028726,120]
[385625770,1757931051267,-200.0,0.00028727,120]
[385625771,1757931051277,-500.0,0.00028735,2]
[385625772,1757931051286,-177.668646,0.00028737,2]
[385625773,1757931051296,-200.0,0.00028739,120]
[385625774,1757931051306,-500.0,0.00028739,2]
[385625775,1757931051316,-800.0,0.00028742,2]
[385625776,1757931051326,-4000.0,0.0002876,5]
[385625777,1757931051335,-337.95624904,0.00028765,90]
[385625778,1757931051345,-492.16,0.00028767,3]
[385625779,1757931051355,-480.0,0.00028767,3]
[385625780,1757931051364,-7126.0,0.00028767,3]
[385625781,1757931051374,-593.65292561,0.00028767,3]
[385625782,1757931051384,-1254.33,0.00028767,3]
[385625783,1757931051394,-480.0,0.00028767,3]
[385625784,1757931051503,-1701.88,0.00028767,3]
[385625785,1757931051513,-151.57,0.00028769,15]
[385625786,1757931051523,-1513.13,0.00028797,15]
[385625787,1757931051532,-168.69998817,0.000288,7]
[385625788,1757931051541,-500.0,0.00028816,2]
[385625789,1757931051550,-293.85068442,0.00028823,2]
[385625790,1757931051559,-31678.65516655,0.0002884,30]
[385625791,1757931051568,-1000.0,0.00028845,2]
[385625792,1757931051577,-2000.0,0.00028859,7]
[385625793,1757931051586,-800.0,0.00028859,2]
[385625794,1757931051596,-188.65949381,0.00028866,2]
[385625795,1757931051605,-1729.29761091,0.00028866,2]
[385625796,1757931051615,-151.57,0.00028869,15]
[385625797,1757931051624,-500.0,0.00028873,5]
[385625798,1757931051634,-397.0,0.0002888,120]
[385625799,1757931051643,-648.0,0.0002888,120]
[385625800,1757931051653,-397.0,0.0002889,120]
[385625801,1757931051663,-648.0,0.0002889,120]
[385625802,1757931051672,-800.0,0.00028892,2]
[385625803,1757931051684,-800.0,0.00028892,2]
[385625804,1757931051693,-800.0,0.00028892,2]
[385625805,1757931051703,-1513.13,0.00028897,15]
[385625806,1757931051713,-32079.53636288,0.000289,60]
[385625807,1757931051723,-1310.5,0.000289,7]
[385625808,1757931051732,-891.82,0.000289,7]
[385625809,1757931051742,-800.0,0.00028916,2]
[385625810,1757931051753,-200.0,0.0002892,120]
[385625811,1757931051762,-9945.04334053,0.00028936,2]
[385625812,1757931051772,-200.0,0.0002894,120]
[385625813,1757931051782,-587.0,0.00028957,2]
[385625814,1757931051792,-1729.29761091,0.00028966,2]
[385625815,1757931051802,-151.57,0.00028969,15]
[385625816,1757931051812,-160.0,0.00028974,5]
[385625817,1757931051821,-800.0,0.00028988,2]
[385625818,1757931051830,-1513.13,0.00028997,15]
[385625819,1757931051839,-800.0,0.00028999,2]
[385625820,1757931051849,-877.38844999,0.00029,2]
[385625821,1757931051859,-209.0,0.00029,2]
[385625822,1757931051868,-10000.0,0.00029,2]
[385625823,1757931051878,-208.0,0.00029,30]
[385625824,1757931051887,-160.0,0.00029,30]
[385625825,1757931051896,-170.04,0.00029,8]
[385625826,1757931051906,-531.33695587,0.00029,30]
[385625827,1757931051916,-531.33695587,0.00029,10]
[385625828,1757931051925,-160.0,0.00029,30]
[385625829,1757931051934,-160.0,0.00029,10]
[385625830,1757931051943,-417.15472785,0.00029,30]
[385625831,1757931051953,-500.0,0.00029003,2]
[385625832,1757931051964,-500.0,0.00029009,2]
[385625833,1757931051975,-351.12281845,0.00029009,7]
[385625834,1757931051984,-2700.0,0.0002901,7]
[385625835,1757931051993,-200.0,0.00029015,120]
[385625836,1757931052003,-500.0,0.00029023,2]
[385625837,1757931052012,-500.0,0.00029036,2]
[385625838,1757931052022,-492.16,0.00029041,3]
[385625839,1757931052031,-480.0,0.00029041,3]
[385625840,1757931052041,-7126.0,0.00029041,3]
[385625841,1757931052050,-1254.33,0.00029041,3]
[385625842,1757931052059,-480.0,0.00029041,3]
[385625843,1757931052068,-1701.88,0.00029041,3]
[385625844,1757931052077,-800.0,0.00029042,2]
[385625845,1757931052086,-500.0,0.00029051,2]
[385625846,1757931052095,-500.0,0.00029055,2]
[385625847,1757931052105,-1729.29761091,0.00029066,2]
[385625848,1757931052115,-450.0,0.00029068,5]
[385625849,1757931052124,-350.0,0.00029068,5]
[385625850,1757931052133,-151.57,0.00029069,15]
[385625851,1757931052142,-500.0,0.00029073,2]
[385625852,1757931052152,-1000.0,0.00029074,2]
[385625853,1757931052161,-1513.13,0.00029097,15]
[385625854,1757931052171,-27026.83,0.000291,7]
[385625855,1757931052180,-1730.71,0.000291,7]
[385625856,1757931052190,-500.0,0.00029101,2]
[385625857,1757931052199,-500.0,0.00029102,2]
[385625858,1757931052209,-500.0,0.00029104,2]
[385625859,1757931052218,-800.0,0.0002911,2]
[385625860,1757931052227,-500.0,0.00029112,2]
[385625861,1757931052236,-200.0,0.00029117,120]
[385625862,1757931052245,-500.0,0.00029122,2]
[385625863,1757931052255,-860.0,0.00029136,2]
[385625864,1757931052263,-1000.0,0.00029142,2]
[385625865,1757931052273,-200.0,0.00029148,120]
[385625866,1757931052282,-200.0,0.0002915,120]
[385625867,1757931052291,-1000.0,0.00029161,2]
[385625868,1757931052300,-151.0,0.00029162,7]
[385625869,1757931052310,-1729.29761091,0.00029166,2]
[385625870,1757931052319,-151.57,0.00029169,15]
[385625871,1757931052329,-1513.13,0.00029197,15]
[385625872,1757931052338,-5000.0,0.00029206,30]
[385625873,1757931052347,-5000.0,0.00029206,30]
[385625874,1757931052356,-5000.0,0.00029206,30]
[385625875,1757931052365,-5000.0,0.00029206,30]
[385625876,1757931052374,-5000.0,0.00029206,30]
[385625877,1757931052383,-5000.0,0.00029206,30]
[385625878,1757931052393,-5000.0,0.00029206,30]
[385625879,1757931052402,-5000.0,0.00029206,30]
[385625880,1757931052411,-5000.0,0.00029206,30]
[385625881,1757931052421,-4519.32,0.00029206,30]
[385625882,1757931052430,-1335.15414733,0.00029212,5]
[385625883,1757931052439,-3000.0,0.00029212,5]
[385625884,1757931052448,-9945.04334053,0.00029237,2]
[385625885,1757931052457,-1000.0,0.00029242,2]
[385625886,1757931052466,-800.0,0.0002925,2]
[385625887,1757931052475,-1000.0,0.00029251,2]
[385625888,1757931052485,-500.0,0.0002926,20]
[385625889,1757931052494,-500.0,0.0002926,5]
[385625890,1757931052503,-500.0,0.0002926,20]
[385625891,1757931052512,-500.0,0.0002926,20]
[385625892,1757931052521,-500.0,0.0002926,5]
[385625893,1757931052531,-500.0,0.0002926,5]
[385625894,1757931052540,-405.94601652,0.0002926,5]
[385625895,1757931052549,-1000.0,0.00029263,2]
[385625896,1757931052559,-1729.29761091,0.00029266,2]
[385625897,1757931052568,-151.57,0.00029269,15]
[385625898,1757931052577,-500.0,0.00029276,2]
[385625899,1757931052587,-456.36507438,0.00029277,60]
[385625900,1757931052596,-1000.0,0.00029279,2]
[385625901,1757931052605,-500.0,0.00029283,2]
[385625902,1757931052615,-1000.0,0.00029294,2]
[385625903,1757931052625,-1513.13,0.00029297,15]
[385625904,1757931052635,-492.16,0.00029315,3]
[385625905,1757931052644,-480.0,0.00029315,3]
[385625906,1757931052653,-7126.0,0.00029315,3]
[385625907,1757931052663,-1254.33,0.00029315,3]
[385625908,1757931052672,-480.0,0.00029315,3]
[385625909,1757931052686,-1701.88,0.00029315,3]
[385625910,1757931052695,-500.0,0.00029365,2]
[385625911,1757931052705,-1729.29761091,0.00029366,2]
[385625912,1757931052714,-151.57,0.00029369,15]
[385625913,1757931052724,-150247.39714814,0.0002937,14]
[385625914,1757931052734,-383.50875531,0.00029381,2]
[385625915,1757931052743,-800.0,0.00029385,2]
[385625916,1757931052753,-800.0,0.00029392,2]
[385625917,1757931052763,-1513.13,0.00029397,15]
[385625918,1757931052773,-800.0,0.00029401,2]
[385625919,1757931052782,-208.0,0.0002941,30]
[385625920,1757931052791,-512.05480042,0.00029416,2]
[385625921,1757931052802,-1000.0,0.00029421,5]
[385625922,1757931052811,-200.0,0.00029436,120]
[385625923,1757931052820,-1000.0,0.0002946,2]
[385625924,1757931052830,-1729.29761091,0.00029466,2]
[385625925,1757931052840,-151.57,0.00029469,15]
[385625926,1757931052849,-500.0,0.00029473,2]
[385625927,1757931052859,-500.0,0.00029487,2]
[385625928,1757931052868,-1513.13,0.00029497,15]
[385625929,1757931052877,-10233.0,0.000295,2]
[385625930,1757931052887,-1740.36553876,0.000295,120]
[385625931,1757931052896,-1551.815186,0.000295,2]
[385625932,1757931052905,-800.0,0.00029505,2]
[385625933,1757931052915,-1000.0,0.00029505,2]
[385625934,1757931052924,-800.0,0.00029509,2]
[385625935,1757931052933,-500.0,0.0002951,2]
[385625936,1757931052942,-500.0,0.00029532,2]
[385625937,1757931052951,-9945.04334053,0.00029538,2]
[385625938,1757931052962,-500.0,0.00029557,2]
[385625939,1757931052972,-1729.29761091,0.00029566,2]
[385625940,1757931052982,-151.57,0.00029569,15]
[385625941,1757931052991,-1000.0,0.00029572,2]
[385625942,1757931053000,-492.16,0.00029589,3]
[385625943,1757931053010,-480.0,0.00029589,3]
[385625944,1757931053019,-7126.0,0.00029589,3]
[385625945,1757931053029,-1254.33,0.00029589,3]
[385625946,1757931053038,-480.0,0.00029589,3]
[385625947,1757931053047,-1701.88,0.00029589,3]
[385625948,1757931053056,-200.0,0.00029595,120]
[385625949,1757931053065,-1513.13,0.00029597,15]
[385625950,1757931053075,-600.0,0.00029616,5]
[385625951,1757931053084,-450.0,0.00029616,5]
[385625952,1757931053094,-800.0,0.00029617,2]
[385625953,1757931053102,-500.0,0.00029624,2]
[385625954,1757931053111,-729.62256158,0.00029625,2]
[385625955,1757931053121,-200.0,0.00029638,120]
[385625956,1757931053131,-1729.29761091,0.00029666,2]
[385625957,1757931053140,-151.57,0.00029669,15]
[385625958,1757931053149,-1000.0,0.00029673,2]
[385625959,1757931053159,-1000.0,0.00029675,2]
[385625960,1757931053168,-2000.0,0.00029681,7]
[385625961,1757931053178,-960.0,0.00029684,2]
[385625962,1757931053187,-500.0,0.0002969,2]
[385625963,1757931053196,-151.0,0.00029696,7]
[385625964,1757931053208,-1513.13,0.00029697,15]
[385625965,1757931053217,-500.0,0.00029697,2]
[385625966,1757931053226,-151.0,0.000297,120]
[385625967,1757931053236,-800.0,0.00029702,2]
[385625968,1757931053245,-1000.0,0.00029718,2]
[385625969,1757931053254,-500.0,0.00029721,2]
[385625970,1757931053264,-500.0,0.00029727,2]
[385625971,1757931053273,-500.0,0.00029751,2]
[385625972,1757931053282,-3500.0,0.0002976,5]
[385625973,1757931053291,-500.0,0.00029767,2]
[385625974,1757931053301,-151.57,0.00029769,15]
[385625975,1757931053310,-200.0,0.00029774,120]
[385625976,1757931053320,-500.0,0.00029783,2]
[385625977,1757931053329,-1000.0,0.00029792,2]
[385625978,1757931053338,-1513.25982922,0.00029797,15]
[385625979,1757931053348,-200.0,0.000298,120]
[385625980,1757931053357,-910.09,0.000298,50]
[385625981,1757931053367,-215.93355,0.000298,120]
[385625982,1757931053376,-500.0,0.0002981,2]
[385625983,1757931053387,-208.0,0.0002982,30]
[385625984,1757931053397,-429.93869721,0.00029831,2]
[385625985,1757931053408,-1252.24,0.00029833,15]
[385625986,1757931053417,-500.0,0.00029837,2]
[385625987,1757931053426,-1000.0,0.00029837,2]
[385625988,1757931053435,-800.0,0.00029843,2]
[385625989,1757931053446,-492.16,0.00029863,3]
[385625990,1757931053458,-480.0,0.00029863,3]
[385625991,1757931053468,-7126.0,0.00029863,3]
[385625992,1757931053478,-1254.33,0.00029863,3]
[385625993,1757931053487,-480.0,0.00029863,3]
[385625994,1757931053497,-1701.88,0.00029863,3]
[385625995,1757931053506,-151.57,0.00029869,15]
[385625996,1757931053516,-500.0,0.0002987,2]
[385625997,1757931053525,-158.113753,0.00029883,2]
[385625998,1757931053534,-500.0,0.00029891,2]
[385625999,1757931053543,-908.44908238,0.00029892,12]
[385626000,1757931053552,-1310.5,0.000299,7]
[385626001,1757931053561,-891.82,0.000299,7]
[385626002,1757931053570,-800.0,0.00029904,2]
[385626003,1757931053580,-800.0,0.00029909,2]
[385626004,1757931053589,-200.0,0.00029915,120]
[385626005,1757931053598,-1000.0,0.00029932,2]
[385626006,1757931053609,-1252.24,0.00029933,15]
[385626007,1757931053621,-500.0,0.00029938,2]
[385626008,1757931053631,-500.0,0.00029946,2]
[385626009,1757931053642,-966.45,0.00029959,2]
[385626010,1757931053651,-1290.50854007,0.00029968,5]
[385626011,1757931053662,-151.57,0.00029969,15]
[385626012,1757931053671,-200.0,0.00029973,120]
[385626013,1757931053690,-800.0,0.00029992,2]
[385626014,1757931053710,-499.3,0.00029994,2]
[385626015,1757931053727,-894.15393666,0.00029998,120]
[385626016,1757931053737,-243.89,0.00029999,2]
[385626017,1757931053747,-20000.0,0.0003,30]
[385626018,1757931053758,-1000.85,0.0003,30]
[385626019,1757931053768,-500.0,0.0003,14]
[385626020,1757931053778,-500.0,0.0003,14]
[385626021,1757931053788,-404.39527565,0.0003,10]
[385626022,1757931053797,-5615.95033068,0.0003,2]
[385626023,1757931053807,-8208.18732849,0.0003,10]
[385626024,1757931053816,-1571.58729475,0.0003,10]
[385626025,1757931053826,-165.46,0.0003,5]
[385626026,1757931053837,-300.94619728,0.0003,50]
[385626027,1757931053847,-206095.0,0.0003,50]
[385626028,1757931053860,-211.0,0.0003,60]
[385626029,1757931053876,-811.9,0.0003,120]
[385626030,1757931053886,-160.0,0.0003,120]
[385626031,1757931053895,-14000.0,0.0003,2]
[385626032,1757931053905,-1000.0,0.0003,120]
[385626033,1757931053914,-39656.05307681,0.0003,7]
[385626034,1757931053924,-49731.0,0.0003,30]
[385626035,1757931053933,-539.0,0.0003,30]
[385626036,1757931053942,-255.4055,0.0003,2]
[385626037,1757931053951,-531.33695587,0.0003,30]
[385626038,1757931053963,-160.0,0.0003,30]
[385626039,1757931053972,-201.46997303,0.0003,2]
[385626040,1757931054071,-1500.0,0.0003,2]
[385626041,1757931054081,-417.15472785,0.0003,120]
[385626042,1757931054090,-4000.0,0.0003,4]
[385626043,1757931054100,-800.0,0.00030001,7]
[385626044,1757931054109,-500.0,0.00030028,7]
[385626045,1757931054119,-1252.24,0.00030033,15]
[385626046,1757931054128,-800.0,0.00030063,7]
[385626047,1757931054138,-151.57,0.00030069,15]
[385626048,1757931054148,-1273.85,0.00030098,30]
[385626049,1757931054157,-152.70198777,0.000301,120]
[385626050,1757931054167,-1730.71,0.000301,7]
[385626051,1757931054176,-27026.83,0.000301,7]
[385626052,1757931054186,-800.0,0.000301,7]
[385626053,1757931054195,-1000.0,0.00030118,7]
[385626054,1757931054206,-155.0,0.00030125,2]
[385626055,1757931054216,-858.5484273,0.0003013,15]
[385626056,1757931054225,-284.48252591,0.0003013,2]
[385626057,1757931054235,-844.39596656,0.00030133,7]
[385626058,1757931054245,-1252.24,0.00030133,15]
[385626059,1757931054255,-492.16,0.00030136,3]
[385626060,1757931054265,-480.0,0.00030136,3]
[385626061,1757931054275,-7126.0,0.00030136,3]
[385626062,1757931054284,-1254.33,0.00030136,3]
[385626063,1757931054294,-480.0,0.00030136,3]
[385626064,1757931054304,-1701.88,0.00030136,3]
[385626065,1757931054314,-190.0,0.00030137,7]
[385626066,1757931054324,-7206.82202163,0.00030138,2]
[385626067,1757931054333,-200.0,0.00030139,120]
[385626068,1757931054343,-383.50875531,0.00030139,2]
[385626069,1757931054352,-500.0,0.00030143,7]
[385626070,1757931054361,-809.43732988,0.00030164,5]
[385626071,1757931054371,-200.49866544,0.00030164,5]
[385626072,1757931054380,-500.0,0.00030166,7]
[385626073,1757931054391,-151.57,0.00030169,15]
[385626074,1757931054401,-200.0,0.0003018,120]
[385626075,1757931054410,-398.83,0.0003018,120]
[385626076,1757931054420,-648.72,0.0003018,120]
[385626077,1757931054430,-397.0,0.0003019,120]
[385626078,1757931054439,-648.0,0.0003019,120]
[385626079,1757931054450,-957.62101249,0.000302,2]
[385626080,1757931054460,-500.0,0.000302,50]
[385626081,1757931054470,-1000.0,0.00030211,7]
[385626082,1757931054479,-160.0,0.00030215,6]
[385626083,1757931054489,-162.92310633,0.00030215,5]
[385626084,1757931054498,-500.0,0.00030216,7]
[385626085,1757931054507,-208.0,0.0003022,30]
[385626086,1757931054517,-158.113753,0.00030226,7]
[385626087,1757931054526,-158.113753,0.00030229,20]
[385626088,1757931054535,-151.0,0.00030229,7]
[385626089,1757931054545,-1000.0,0.0003023,50]
[385626090,1757931054554,-1060.0,0.00030232,2]
[385626091,1757931054564,-1252.24,0.00030233,15]
[385626092,1757931054573,-155.2933993,0.00030238,14]
[385626093,1757931054583,-260.0,0.00030238,120]
[385626094,1757931054592,-2438136.96925176,0.00030239,20]
[385626095,1757931054721,150.5,0.00025085,120]
[385626096,1757931054753,163.11,0.00025075,120]
[385626097,1757931100966,-5000000.0,0.00030239,20]
[385626098,1757931106226,233.6824399,0.00026206,120]
[385626103,1757931191981,208.65996871,0.000199,2]
[385626104,1757931361937,499.42572846,0.00030073,50]
[385626108,1757931910441,179.1,0.00030067,50]
[385626144,1757932053527,218.626728,0.00027397,120]
[385626153,1757932109260,265.1563608,0.00030067,120]
[385626155,1757932110828,881.20827561,0.00030067,60]
[385626156,1757932116034,496.01391455,0.00030067,120]
[385626157,1757932116210,238.13145558,0.00030067,120]
[385626158,1757932116533,300.0,0.00027397,120]
[385626161,1757932119391,381.90235609,0.00030067,60]
[385626162,1757932119806,159.46196665,0.00025,120]
[385626164,1757932123226,993.77772405,0.00027,120]
[385626166,1757932124190,204.07435934,0.00030067,120]
[385626227,1757932234319,-224.7177099,0.00023519,2]
[385626228,1757932234329,-626.77801312,0.00023655,2]